fUST/lending_fUST_20250722
["ID","MTS","AMOUNT","RATE_DAILY","PERIOD"]
[374081019,1753197051022,-151.0,0.0001851,2]
[374081021,1753197051031,-3911.73,0.00018511,2]
[374081023,1753197051041,-460.0,0.00018511,2]
[374081026,1753197051050,-651.39,0.00018511,2]
[374081028,1753197051070,-460.0,0.00018512,2]
[374081030,1753197051080,-1316.16,0.00018512,2]
[374081032,1753197051089,-460.0,0.00018512,2]
[374081034,1753197051098,-869.54,0.00018512,2]
[374081036,1753197051108,-1624.65,0.00018512,2]
[374081038,1753197051118,-969.07,0.00018512,2]
[374081040,1753197051127,-821.61580969,0.00018611,2]
[374081042,1753197051137,-886.97,0.00018709,2]
[374081044,1753197051146,-460.0,0.0001871,2]
[374081046,1753197051156,-152.61,0.0001871,2]
[374081048,1753197051166,-2348.86,0.0001871,2]
[374081050,1753197051175,-1422.65,0.0001871,2]
[374081052,1753197051185,-460.0,0.0001871,2]
[374081054,1753197051194,-460.0,0.0001871,2]
[374081056,1753197051204,-460.0,0.0001871,2]
[374081059,1753197051214,-460.0,0.0001871,2]
[374081061,1753197051223,-871.9,0.0001871,2]
[374081063,1753197051233,-607.52,0.0001871,2]
[374081077,1753197051362,-460.0,0.0001871,2]
[374081079,1753197051372,-715.77,0.0001871,2]
[374081081,1753197051383,-460.0,0.0001871,2]
[374081083,1753197051393,-460.0,0.0001871,2]
[374081085,1753197051402,-588.03,0.0001871,2]
[374081087,1753197051412,-460.0,0.0001871,2]
[374081089,1753197051421,-737.25,0.0001871,2]
[374081091,1753197051431,-460.0,0.0001871,2]
[374081093,1753197051441,-460.0,0.0001871,2]
[374081095,1753197051451,-460.0,0.0001871,2]
[374081097,1753197051461,-2523.3574228,0.00018762,2]
[374081099,1753197051470,-153.71945571,0.0001878,2]
[374081101,1753197051479,-460.0,0.00018781,2]
[374081103,1753197051488,-227.71355945,0.00018781,2]
[374081105,1753197051497,-460.0,0.00018781,2]
[374081107,1753197051507,-460.0,0.00018781,2]
[374081109,1753197051517,-460.0,0.00018781,2]
[374081111,1753197051526,-912.88,0.00018782,2]
[374081113,1753197051535,-460.0,0.00018782,2]
[374081115,1753197051544,-460.0,0.00018782,2]
[374081117,1753197051553,-1325.56,0.00018782,2]
[374081119,1753197051562,-460.0,0.00018782,2]
[374081121,1753197051571,-486.33,0.00018782,2]
[374081122,1753197051581,-503.2,0.00018782,2]
[374081124,1753197051590,-460.0,0.00018783,2]
[374081126,1753197051599,-460.0,0.00018783,2]
[374081129,1753197051609,-460.0,0.00018783,2]
[374081130,1753197051618,-460.0,0.00018783,2]
[374081132,1753197051628,-460.0,0.00018783,2]
[374081135,1753197051642,-460.0,0.00018783,2]
[374081137,1753197051652,-460.0,0.00018783,2]
[374081139,1753197051661,-152.677723,0.00018783,2]
[374081141,1753197051671,-510.64774941,0.00018784,2]
[374081143,1753197051681,-460.0,0.00018784,2]
[374081145,1753197051690,-460.0,0.00018784,2]
[374081147,1753197051700,-2765.69,0.00018784,2]
[374081149,1753197051710,-3911.73,0.00018785,2]
[374081151,1753197051719,-460.0,0.00018785,2]
[374081153,1753197051729,-151.0,0.00018785,2]
[374081155,1753197051738,-651.39,0.00018785,2]
[374081157,1753197051748,-459.84,0.00018786,2]
[374081159,1753197051757,-1316.16,0.00018786,2]
[374081161,1753197051768,-460.0,0.00018786,2]
[374081164,1753197051777,-869.54,0.00018786,2]
[374081165,1753197051787,-1624.65,0.00018786,2]
[374081167,1753197051796,-969.07,0.00018786,2]
[374081169,1753197051806,-500.0,0.00018789,2]
[374081171,1753197051815,-217.66872975,0.00018789,2]
[374081173,1753197051825,-2000.0,0.000188,4]
[374081175,1753197051834,-886.97,0.00018983,2]
[374081178,1753197051844,-2348.86,0.00018984,2]
[374081179,1753197051853,-1422.65,0.00018984,2]
[374081181,1753197051863,-460.0,0.00018984,2]
[374081183,1753197051872,-460.0,0.00018984,2]
[374081185,1753197051882,-483.58,0.00018984,2]
[374081187,1753197051891,-871.9,0.00018984,2]
[374081190,1753197051900,-607.52,0.00018984,2]
[374081192,1753197051910,-423.20922546,0.00018984,2]
[374081194,1753197051919,-715.77,0.00018984,2]
[374081195,1753197051928,-460.0,0.00018984,2]
[374081197,1753197051938,-460.0,0.00018984,2]
[374081200,1753197051947,-737.25,0.00018984,2]
[374081202,1753197051957,-460.0,0.00018984,2]
[374081204,1753197051966,-460.0,0.00018984,2]
[374081206,1753197051975,-260.0,0.00019038,2]
[374081207,1753197051984,-499.56,0.00019055,2]
[374081209,1753197051993,-460.0,0.00019055,2]
[374081211,1753197052002,-460.0,0.00019055,2]
[374081213,1753197052012,-912.88,0.00019056,2]
[374081216,1753197052023,-460.0,0.00019056,2]
[374081218,1753197052032,-460.0,0.00019056,2]
[374081220,1753197052041,-1325.56,0.00019056,2]
[374081222,1753197052051,-460.0,0.00019056,2]
[374081224,1753197052060,-486.33,0.00019056,2]
[374081226,1753197052069,-503.2,0.00019056,2]
[374081227,1753197052078,-460.0,0.00019057,2]
[374081229,1753197052088,-460.0,0.00019057,2]
[374081232,1753197052099,-460.0,0.00019057,2]
[374081234,1753197052108,-460.0,0.00019057,2]
[374081236,1753197052117,-460.0,0.00019057,2]
[374081238,1753197052126,-460.0,0.00019057,2]
[374081240,1753197052136,-460.0,0.00019057,2]
[374081242,1753197052145,-460.0,0.00019058,2]
[374081244,1753197052154,-2765.69,0.00019058,2]
[374081246,1753197052163,-3911.73,0.00019059,2]
[374081248,1753197052173,-460.0,0.00019059,2]
[374081250,1753197052182,-651.39,0.00019059,2]
[374081252,1753197052191,-3000.0,0.00019059,2]
[374081254,1753197052200,-1316.16,0.0001906,2]
[374081256,1753197052210,-460.0,0.0001906,2]
[374081258,1753197052220,-869.54,0.0001906,2]
[374081260,1753197052229,-1624.65,0.0001906,2]
[374081262,1753197052238,-969.07,0.0001906,2]
[374081264,1753197052247,-2523.3574228,0.00019072,2]
[374081266,1753197052257,-223.0315306,0.00019111,2]
[374081268,1753197052267,-753.7,0.00019155,2]
[374081269,1753197052276,-179.673466,0.00019178,2]
[374081271,1753197052286,-886.97,0.00019257,2]
[374081274,1753197052296,-2348.86,0.00019258,2]
[374081276,1753197052305,-1422.65,0.00019258,2]
[374081277,1753197052314,-460.0,0.00019258,2]
[374081280,1753197052324,-460.0,0.00019258,2]
[374081282,1753197052334,-871.9,0.00019258,2]
[374081284,1753197052349,-607.52,0.00019258,2]
[374081286,1753197052358,-715.77,0.00019258,2]
[374081288,1753197052367,-460.0,0.00019258,2]
[374081290,1753197052377,-460.0,0.00019258,2]
[374081292,1753197052388,-737.25,0.00019258,2]
[374081294,1753197052397,-460.0,0.00019258,2]
[374081296,1753197052406,-460.0,0.00019258,2]
[374081297,1753197052417,-151.0,0.00019329,2]
[374081300,1753197052427,-184.877116,0.00019329,2]
[374081302,1753197052436,-184.877116,0.00019329,2]
[374081304,1753197052446,-151.0,0.00019329,2]
[374081306,1753197052455,-151.0,0.00019329,2]
[374081307,1753197052465,-151.0,0.00019329,2]
[374081309,1753197052474,-460.0,0.00019329,2]
[374081311,1753197052484,-151.0,0.00019329,2]
[374081314,1753197052494,-460.0,0.00019329,2]
[374081315,1753197052504,-85815.78784217,0.00019329,2]
[374081317,1753197052514,-151.0,0.0001933,2]
[374081319,1753197052526,-151.0,0.0001933,2]
[374081321,1753197052540,-912.88,0.0001933,2]
[374081323,1753197052551,-460.0,0.0001933,2]
[374081326,1753197052560,-460.0,0.0001933,2]
[374081327,1753197052570,-1325.56,0.0001933,2]
[374081330,1753197052580,-460.0,0.0001933,2]
[374081332,1753197052590,-486.33,0.0001933,2]
[374081334,1753197052599,-503.2,0.0001933,2]
[374081336,1753197052608,-460.0,0.00019331,2]
[374081337,1753197052617,-460.0,0.00019331,2]
[374081340,1753197052626,-460.0,0.00019331,2]
[374081341,1753197052635,-460.0,0.00019331,2]
[374081343,1753197052645,-525.807,0.00019331,2]
[374081345,1753197052654,-460.0,0.00019331,2]
[374081348,1753197052664,-460.0,0.00019331,2]
[374081350,1753197052674,-460.0,0.00019332,2]
[374081352,1753197052683,-2765.69,0.00019332,2]
[374081354,1753197052696,-3911.73,0.00019333,2]
[374081355,1753197052706,-460.0,0.00019333,2]
[374081357,1753197052716,-651.39,0.00019333,2]
[374081359,1753197052725,-1316.16,0.00019334,2]
[374081361,1753197052735,-460.0,0.00019334,2]
[374081363,1753197052744,-869.54,0.00019334,2]
[374081365,1753197052753,-1624.65,0.00019334,2]
[374081367,1753197052762,-969.07,0.00019334,2]
[374081368,1753197052772,-500.0,0.00019373,2]
[374081369,1753197052781,-500.0,0.00019373,2]
[374081370,1753197052790,-500.0,0.00019373,2]
[374081371,1753197052800,-500.0,0.00019373,2]
[374081372,1753197052809,-500.0,0.00019373,2]
[374081373,1753197052818,-500.0,0.00019373,2]
[374081374,1753197052828,-500.0,0.00019373,2]
[374081375,1753197052837,-2523.3574228,0.00019383,2]
[374081377,1753197052847,-821.61580969,0.00019434,2]
[374081379,1753197052856,-886.97,0.00019531,2]
[374081381,1753197052865,-2348.86,0.00019532,2]
[374081383,1753197052875,-1422.65,0.00019532,2]
[374081385,1753197052884,-460.0,0.00019532,2]
[374081387,1753197052894,-575.681192,0.00019532,2]
[374081389,1753197052903,-871.9,0.00019532,2]
[374081391,1753197052913,-607.52,0.00019532,2]
[374081393,1753197052922,-715.77,0.00019532,2]
[374081395,1753197052932,-460.0,0.00019532,2]
[374081398,1753197052942,-460.0,0.00019532,2]
[374081400,1753197052951,-737.25,0.00019532,2]
[374081402,1753197052960,-460.0,0.00019532,2]
[374081404,1753197052969,-460.0,0.00019532,2]
[374081406,1753197052979,-360.0,0.00019586,2]
[374081408,1753197052988,-460.0,0.00019603,2]
[374081410,1753197052997,-460.0,0.00019603,2]
[374081413,1753197053016,-151.0,0.00019604,2]
[374081415,1753197053028,-151.0,0.00019604,2]
[374081417,1753197053038,-1246.566547,0.00019604,2]
[374081419,1753197053050,-1246.566547,0.00019604,2]
[374081421,1753197053059,-151.0,0.00019604,2]
[374081423,1753197053069,-912.88,0.00019604,2]
[374081425,1753197053079,-460.0,0.00019604,2]
[374081427,1753197053088,-221.2,0.00019604,2]
[374081429,1753197053098,-1325.56,0.00019604,2]
[374081431,1753197053108,-460.0,0.00019604,2]
[374081433,1753197053118,-486.33,0.00019604,2]
[374081435,1753197053128,-503.2,0.00019604,2]
[374081437,1753197053137,-460.0,0.00019605,2]
[374081439,1753197053147,-460.0,0.00019605,2]
[374081441,1753197053157,-460.0,0.00019605,2]
[374081443,1753197053167,-460.0,0.00019605,2]
[374081445,1753197053177,-460.0,0.00019605,2]
[374081447,1753197053186,-460.0,0.00019605,2]
[374081449,1753197053196,-2765.69,0.00019606,2]
[374081452,1753197053206,-3911.73,0.00019607,2]
[374081454,1753197053215,-460.0,0.00019607,2]
[374081455,1753197053225,-651.39,0.00019607,2]
[374081458,1753197053234,-1316.16,0.00019608,2]
[374081459,1753197053244,-460.0,0.00019608,2]
[374081474,1753197053363,-869.54,0.00019608,2]
[374081476,1753197053383,-1624.65,0.00019608,2]
[374081478,1753197053394,-969.07,0.00019608,2]
[374081480,1753197053404,-2523.3574228,0.00019693,2]
[374081482,1753197053414,-173.313019,0.00019751,2]
[374081484,1753197053425,-2000.0,0.000198,5]
[374081486,1753197053434,-886.97,0.00019805,2]
[374081488,1753197053443,-2348.86,0.00019806,2]
[374081490,1753197053453,-1422.65,0.00019806,2]
[374081492,1753197053462,-460.0,0.00019806,2]
[374081494,1753197053472,-871.9,0.00019806,2]
[374081496,1753197053481,-607.52,0.00019806,2]
[374081498,1753197053491,-715.77,0.00019806,2]
[374081501,1753197053500,-460.0,0.00019806,2]
[374081503,1753197053510,-460.0,0.00019806,2]
[374081505,1753197053519,-737.25,0.00019806,2]
[374081506,1753197053529,-460.0,0.00019806,2]
[374081508,1753197053538,-460.0,0.00019806,2]
[374081510,1753197053547,-5000.0,0.00019826,2]
[374081513,1753197053556,-518.82,0.00019877,2]
[374081514,1753197053566,-460.0,0.00019877,2]
[374081516,1753197053575,-151.0,0.00019878,2]
[374081519,1753197053585,-912.88,0.00019878,2]
[374081521,1753197053594,-1325.56,0.00019878,2]
[374081523,1753197053603,-460.0,0.00019878,2]
[374081525,1753197053612,-486.33,0.00019878,2]
[374081527,1753197053621,-503.2,0.00019878,2]
[374081529,1753197053630,-460.0,0.00019879,2]
[374081531,1753197053639,-460.0,0.00019879,2]
[374081533,1753197053648,-460.0,0.00019879,2]
[374081535,1753197053657,-460.0,0.00019879,2]
[374081537,1753197053667,-460.0,0.00019879,2]
[374081539,1753197053676,-460.0,0.00019879,2]
[374081541,1753197053685,-2765.69,0.0001988,2]
[374081543,1753197053695,-3911.73,0.00019881,2]
[374081545,1753197053704,-460.0,0.00019881,2]
[374081547,1753197053714,-651.39,0.00019881,2]
[374081549,1753197053724,-1316.16,0.00019882,2]
[374081551,1753197053734,-321.96,0.00019882,2]
[374081553,1753197053743,-869.54,0.00019882,2]
[374081555,1753197053752,-1624.65,0.00019882,2]
[374081557,1753197053762,-969.07,0.00019882,2]
[374081559,1753197053773,-1000.0,0.00019921,2]
[374081561,1753197053782,-1113.72738664,0.00019921,2]
[374081563,1753197053792,-1000.0,0.00019921,2]
[374081565,1753197053801,-500.0,0.00019921,2]
[374081567,1753197053811,-500.0,0.00019921,2]
[374081569,1753197053820,-1000.0,0.00019921,2]
[374081571,1753197053830,-151.0,0.0002,2]
[374081573,1753197053839,-151.0,0.0002,2]
[374081575,1753197053848,-198.0,0.0002,2]
[374081577,1753197053858,-483.0,0.0002,2]
[374081579,1753197053867,-151.0,0.0002,2]
[374081581,1753197053876,-151.0,0.0002,2]
[374081583,1753197053886,-151.0,0.0002,2]
[374081585,1753197053897,-500.0,0.0002,2]
[374081587,1753197053907,-151.0,0.0002,2]
[374081589,1753197053916,-151.0,0.0002,2]
[374081591,1753197053925,-151.26714115,0.0002,2]
[374081593,1753197053935,-151.0,0.0002,2]
[374081596,1753197053944,-151.0,0.0002,2]
[374081598,1753197053953,-151.0,0.0002,2]
[374081600,1753197053963,-271.86983277,0.0002,2]
[374081602,1753197053974,-276.74411777,0.0002,2]
[374081604,1753197053984,-151.0,0.0002,2]
[374081606,1753197053993,-151.0,0.0002,2]
[374081608,1753197054003,-151.0,0.0002,2]
[374081610,1753197054012,-2523.3574228,0.00020003,2]
[374081612,1753197054023,-3000.0,0.00020012,2]
[374081614,1753197054033,-587.0,0.00020038,2]
[374081616,1753197054043,-886.97,0.00020079,2]
[374081618,1753197054052,-2348.86,0.0002008,2]
[374081620,1753197054062,-1422.65,0.0002008,2]
[374081623,1753197054072,-460.0,0.0002008,2]
[374081625,1753197054082,-871.9,0.0002008,2]
[374081627,1753197054091,-607.52,0.0002008,2]
[374081629,1753197054100,-715.77,0.0002008,2]
[374081631,1753197054110,-460.0,0.0002008,2]
[374081633,1753197054119,-460.0,0.0002008,2]
[374081635,1753197054128,-737.25,0.0002008,2]
[374081637,1753197054138,-460.0,0.0002008,2]
[374081639,1753197054148,-460.0,0.0002008,2]
[374081641,1753197054158,-460.0,0.00020134,2]
[374081643,1753197054167,-460.0,0.00020151,2]
[374081645,1753197054177,-912.88,0.00020152,2]
[374081647,1753197054186,-1325.56,0.00020152,2]
[374081649,1753197054195,-460.0,0.00020152,2]
[374081651,1753197054205,-486.33,0.00020152,2]
[374081653,1753197054214,-503.2,0.00020152,2]
[374081655,1753197054224,-609.20378705,0.00020153,2]
[374081657,1753197054233,-168.86867094,0.00020153,2]
[374081659,1753197054242,-460.0,0.00020153,2]
[374081661,1753197054251,-460.0,0.00020153,2]
[374081663,1753197054261,-519.98904119,0.00020153,2]
[374081665,1753197054271,-460.0,0.00020153,2]
[374081667,1753197054281,-2765.69,0.00020154,2]
[374081669,1753197054291,-3911.73,0.00020155,2]
[374081671,1753197054300,-460.0,0.00020155,2]
[374081673,1753197054310,-651.39,0.00020155,2]
[374081675,1753197054319,-198.534544,0.00020156,2]
[374081677,1753197054328,-151.0,0.00020156,2]
[374081679,1753197054338,-1246.566547,0.00020156,2]
[374081681,1753197054350,-1246.566547,0.00020156,2]
[374081683,1753197054360,-1316.16,0.00020156,2]
[374081685,1753197054370,-869.54,0.00020156,2]
[374081687,1753197054379,-1624.65,0.00020156,2]
[374081689,1753197054389,-212.434562,0.00020156,2]
[374081691,1753197054398,-969.07,0.00020156,2]
[374081694,1753197054408,-151.0,0.00020159,2]
[374081696,1753197054418,-151.0,0.00020159,2]
[374081698,1753197054428,-151.0,0.00020159,2]
[374081700,1753197054437,-821.61580969,0.00020257,2]
[374081702,1753197054446,-483.0,0.00020274,2]
[374081704,1753197054455,-500.0,0.00020274,2]
[374081706,1753197054464,-151.0,0.00020274,2]
[374081708,1753197054475,-151.0,0.00020274,2]
[374081710,1753197054484,-151.0,0.00020274,2]
[374081712,1753197054494,-151.0,0.00020274,2]
[374081714,1753197054503,-151.0,0.00020274,2]
[374081716,1753197054512,-151.0,0.00020285,2]
[374081718,1753197054523,-151.0,0.00020285,2]
[374081720,1753197054532,-2523.3574228,0.00020314,3]
[374081722,1753197054542,-1000.0,0.00020333,5]
[374081724,1753197054552,-886.97,0.00020353,2]
[374081726,1753197054561,-2348.86,0.00020354,2]
[374081727,1753197054571,-1422.65,0.00020354,2]
[374081730,1753197054580,-460.0,0.00020354,2]
[374081732,1753197054589,-871.9,0.00020354,2]
[374081734,1753197054599,-607.52,0.00020354,2]
[374081736,1753197054608,-715.77,0.00020354,2]
[374081738,1753197054617,-460.0,0.00020354,2]
[374081740,1753197054627,-343.60728136,0.00020354,2]
[374081742,1753197054637,-737.25,0.00020354,2]
[374081744,1753197054646,-460.0,0.00020354,2]
[374081746,1753197054655,-460.0,0.00020354,2]
[374081748,1753197054665,-107827.86166609,0.00020357,2]
[374081750,1753197054674,-151.0,0.00020357,2]
[374081752,1753197054684,-184.877116,0.00020357,2]
[374081754,1753197054693,-184.877116,0.00020357,2]
[374081756,1753197054703,-500.0,0.00020373,2]
[374081758,1753197054713,-500.0,0.00020373,2]
[374081760,1753197054722,-500.0,0.00020373,2]
[374081761,1753197054732,-500.0,0.00020373,2]
[374081763,1753197054741,-1000.0,0.00020394,2]
[374081765,1753197054750,-460.0,0.00020425,2]
[374081767,1753197054759,-912.88,0.00020426,2]
[374081769,1753197054770,-1325.56,0.00020426,2]
[374081771,1753197054779,-340.0,0.00020426,2]
[374081773,1753197054790,-486.33,0.00020426,2]
[374081775,1753197054799,-503.2,0.00020426,2]
[374081778,1753197054809,-151.0,0.00020427,2]
[374081779,1753197054819,-460.0,0.00020427,2]
[374081781,1753197054828,-1246.566547,0.00020427,2]
[374081783,1753197054838,-1246.566547,0.00020427,2]
[374081785,1753197054847,-460.0,0.00020427,2]
[374081787,1753197054857,-151.0,0.00020427,2]
[374081789,1753197054867,-151.0,0.00020427,2]
[374081791,1753197054877,-460.0,0.00020427,2]
[374081794,1753197054887,-151.0,0.00020427,2]
[374081795,1753197054897,-2765.69,0.00020428,2]
[374081797,1753197054907,-3911.73,0.00020429,2]
[374081800,1753197054917,-460.0,0.00020429,2]
[374081802,1753197054927,-651.39,0.00020429,2]
[374081804,1753197054936,-1316.16,0.0002043,2]
[374081805,1753197054946,-869.54,0.0002043,2]
[374081808,1753197054956,-1624.65,0.0002043,2]
[374081809,1753197054965,-969.07,0.0002043,2]
[374081811,1753197054974,-151.0,0.00020448,2]
[374081814,1753197054984,-1500.0,0.00020468,2]
[374081816,1753197054994,-1375.39190922,0.00020468,2]
[374081818,1753197055003,-1503.5032217,0.00020468,2]
[374081820,1753197055012,-231.28369723,0.0002048,2]
[374081822,1753197055026,-483.0,0.00020548,2]
[374081824,1753197055036,-500.0,0.00020548,2]
[374081826,1753197055045,-151.0,0.00020548,2]
[374081828,1753197055055,-195.36597427,0.00020548,2]
[374081830,1753197055064,-151.0,0.000206,3]
[374081832,1753197055074,-2523.3574228,0.00020624,3]
[374081834,1753197055084,-886.97,0.00020627,2]
[374081836,1753197055093,-2348.86,0.00020628,2]
[374081846,1753197055180,-1422.65,0.00020628,2]
[374081848,1753197055190,-460.0,0.00020628,2]
[374081850,1753197055200,-871.9,0.00020628,2]
[374081852,1753197055211,-607.52,0.00020628,2]
[374081854,1753197055222,-715.77,0.00020628,2]
[374081856,1753197055232,-460.0,0.00020628,2]
[374081858,1753197055242,-1004.93,0.00020628,2]
[374081860,1753197055252,-737.25,0.00020628,2]
[374081862,1753197055262,-460.0,0.00020628,2]
[374081864,1753197055272,-460.0,0.00020628,2]
[374081866,1753197055282,-560.0,0.00020682,2]
[374081868,1753197055292,-460.0,0.00020699,2]
[374081870,1753197055302,-912.88,0.000207,2]
[374081872,1753197055313,-1325.56,0.000207,2]
[374081874,1753197055323,-486.33,0.000207,2]
[374081876,1753197055333,-503.2,0.000207,2]
[374081878,1753197055344,-460.0,0.00020701,2]
[374081880,1753197055356,-460.0,0.00020701,2]
[374081882,1753197055366,-460.0,0.00020701,2]
[374081884,1753197055376,-2765.69,0.00020702,2]
[374081886,1753197055386,-3911.73,0.00020703,2]
[374081888,1753197055395,-460.0,0.00020703,2]
[374081890,1753197055405,-651.39,0.00020703,2]
[374081892,1753197055415,-1316.16,0.00020704,2]
[374081894,1753197055426,-869.54,0.00020704,2]
[374081896,1753197055436,-1624.65,0.00020704,2]
[374081898,1753197055446,-969.07,0.00020704,2]
[374081900,1753197055455,-483.0,0.00020822,2]
[374081902,1753197055464,-500.0,0.00020822,2]
[374081905,1753197055473,-247.82111675,0.00020822,2]
[374081907,1753197055483,-886.97,0.00020901,2]
[374081909,1753197055492,-2348.86,0.00020902,2]
[374081910,1753197055502,-1422.65,0.00020902,2]
[374081912,1753197055511,-460.0,0.00020902,2]
[374081915,1753197055521,-871.9,0.00020902,2]
[374081917,1753197055532,-607.52,0.00020902,2]
[374081919,1753197055542,-715.77,0.00020902,2]
[374081920,1753197055552,-533.22541902,0.00020902,2]
[374081922,1753197055563,-737.25,0.00020902,2]
[374081925,1753197055572,-460.0,0.00020902,2]
[374081926,1753197055582,-460.0,0.00020902,2]
[374081929,1753197055592,-500.0,0.00020921,2]
[374081931,1753197055602,-2523.3574228,0.00020934,4]
[374081932,1753197055612,-3000.0,0.00020965,2]
[374081935,1753197055621,-460.0,0.00020973,2]
[374081936,1753197055631,-912.88,0.00020974,2]
[374081938,1753197055640,-1325.56,0.00020974,2]
[374081941,1753197055650,-486.33,0.00020974,2]
[374081943,1753197055659,-503.2,0.00020974,2]
[374081945,1753197055669,-460.0,0.00020975,2]
[374081947,1753197055678,-460.0,0.00020975,2]
[374081949,1753197055688,-460.0,0.00020975,2]
[374081951,1753197055698,-3911.73,0.00020976,2]
[374081953,1753197055707,-460.0,0.00020976,2]
[374081955,1753197055717,-2765.69,0.00020976,2]
[374081957,1753197055726,-651.39,0.00020976,2]
[374081959,1753197055736,-1316.16,0.00020978,2]
[374081961,1753197055745,-869.54,0.00020978,2]
[374081963,1753197055754,-1624.65,0.00020978,2]
[374081965,1753197055764,-969.07,0.00020978,2]
[374081967,1753197055774,-3000.0,0.00021,2]
[374081969,1753197055784,-3000.0,0.0002101,2]
[374081971,1753197055795,-542.18048329,0.00021016,2]
[374081973,1753197055805,-3000.0,0.0002102,2]
[374081975,1753197055816,-3000.0,0.0002103,2]
[374081977,1753197055828,-76336.39374853,0.0002103,2]
[374081986,1753197055917,-226.44694907,0.0002103,2]
[374081988,1753197055928,-3000.0,0.0002104,2]
[374081990,1753197055938,-3000.0,0.0002105,2]
[374081992,1753197055948,-3000.0,0.0002106,2]
[374081994,1753197055959,-3000.0,0.0002107,2]
[374081996,1753197055969,-3000.0,0.0002108,2]
[374081998,1753197055979,-1777.37372175,0.0002109,2]
[374082498,1753197062117,239.73,0.00016649,2]
[374083055,1753197067844,150.0,0.00021236,30]
[374083269,1753197141167,35978.42229708,0.00016764,2]
[374083270,1753197141193,10000.0,0.00016764,2]
[374083271,1753197141217,10000.0,0.00016764,2]
[374083272,1753197141242,10000.0,0.00016764,2]
[374083273,1753197141267,10000.0,0.00016764,2]
[374083274,1753197141291,10000.0,0.00016764,2]
[374083275,1753197141315,10000.0,0.00016764,2]
[374083276,1753197141338,10000.0,0.00016764,2]
[374083277,1753197141365,10000.0,0.00016764,2]
[374083278,1753197141390,10000.0,0.00016764,2]
[374083279,1753197141415,10000.0,0.00016764,2]
[374083280,1753197141439,10000.0,0.00016764,2]
[374083281,1753197141467,10000.0,0.00016764,2]
[374083282,1753197141492,10000.0,0.00016764,2]
[374083283,1753197141515,10000.0,0.00016764,2]
[374083284,1753197141540,10000.0,0.00016764,2]
[374083285,1753197141562,10000.0,0.00016764,2]
[374083286,1753197141589,10000.0,0.00016764,2]
[374083287,1753197141616,10000.0,0.00016764,2]
[374083288,1753197141639,10000.0,0.00016764,2]
[374083289,1753197141662,10000.0,0.00016764,2]
[374083290,1753197141686,2568.81180587,0.00016764,2]
[374083291,1753197141708,10000.0,0.00016764,2]
[374083292,1753197141731,10000.0,0.00016764,2]
[374083293,1753197141754,10000.0,0.00016764,2]
[374083294,1753197141776,10000.0,0.00016764,2]
[374083295,1753197141797,10000.0,0.00016764,2]
[374083296,1753197141819,10000.0,0.00016764,2]